bitfinex/quotes_ETHUSD_20251215
["timestamp","ask_amount","ask_price","bid_price","bid_amount"]
[1765765126729,0.00966759,3139.7,3138.6,0.03186133]
[1765765126919,0.6323,3139.8,3138.5,0.4994]
[1765765127123,0.0973,3139.9,3138.5,0.4994]
[1765765127325,0.0973,3139.9,3138.7,0.58047529]
[1765765127625,0.0973,3139.9,3138.8,1.01388771]
[1765765127857,0.0973,3139.9,3138.9,0.03185829]
[1765765128046,0.0973,3139.9,3138.9,0.4984]
[1765765129429,0.0973,3139.9,3138.9,3.68419844]
[1765765129748,0.0973,3139.9,3138.5,0.001]
[1765765129749,0.00966759,3139.4,3138.5,0.001]
[1765765130057,0.54366759,3139.4,3138.5,0.001]
[1765765130224,0.54366759,3139.4,3138.5,0.58147529]
[1765765130424,0.54366759,3139.4,3138.5,0.001]
[1765765130631,0.534,3139.4,3138.5,0.001]
[1765765130831,0.534,3139.4,3138.6,3.18612779]
[1765765131026,0.534,3139.4,3138.5,0.001]
[1765765132445,0.534,3139.4,3138.5,0.4994]
[1765765133159,0.534,3139.4,3138.5,0.001]
[1765765133460,0.534,3139.4,3138.7,3.18603243]
[1765765133642,0.534,3139.4,3138.6,3.18610132]
[1765765134374,0.534,3139.4,3138.6,6.69094539]
[1765765134658,0.534,3139.4,3138.6,3.50481145]
[1765765134861,0.534,3139.4,3138.6,3.18610132]
[1765765135061,0.534,3139.4,3138.6,6.37223526]
[1765765135228,0.534,3139.4,3138.6,6.87063526]
[1765765136750,0.00966759,3139.7,3138.7,0.58047529]
[1765765136953,0.00966759,3139.7,3138.7,1.32568635]
[1765765137150,3.82485945,3139.9,3138.7,1.32568635]
[1765765137356,0.63996759,3139.9,3138.7,1.32568635]
[1765765137578,3.82478964,3139.9,3138.7,1.32568635]
[1765765137972,3.82478435,3139.9,3138.8,6.37186184]
[1765765138485,3.82482158,3139.9,3138.8,4.00397574]
[1765765138851,4.02022158,3139.9,3138.8,4.00397574]
[1765765139162,4.02022158,3139.9,3138.8,7.18990666]
[1765765139358,0.8257,3139.9,3138.8,7.18990666]
[1765765139702,0.8257,3139.9,3138.5,0.001]
[1765765139703,0.00966759,3139.6,3138.5,0.001]
[1765765139853,0.00966759,3139.6,3138.5,0.58147529]
[1765765140182,0.00966759,3139.2,3138.5,0.001]
[1765765140385,0.1954,3138.6,3138.5,0.001]
[1765765140583,0.54166759,3139.2,3138.5,0.9678]
[1765765140584,0.532,3139.2,3138.5,0.9678]
[1765765140884,0.0983,3141.2,3139.1,0.6803]
[1765765141086,0.0983,3141.2,3139.3,0.405504]
[1765765141384,0.0983,3141.2,3139.4,0.533]
[1765765141588,0.1954,3142.8,3141.1,0.1964]
[1765765141883,0.54266759,3143.1,3141.4,0.58047529]
[1765765142186,0.00966759,3143.1,3141.4,0.58047529]
[1765765142486,0.00966759,3143.1,3141.5,1.0159]
[1765765142785,0.0971,3143.4,3141.5,1.0159]
[1765765142786,0.0971,3143.4,3141.6,0.15963753]
[1765765142952,6.64986878,3144.3,3141.6,0.15963753]
[1765765142953,0.1974,3144.2,3141.7,0.405504]
[1765765143148,0.1974,3144.2,3142.0,0.98597929]
[1765765143381,3.18077388,3143.9,3142.1,0.533]
[1765765143547,0.1974,3144.2,3142.1,0.6793]
[1765765143753,3.18059205,3144.1,3142.2,1.18242793]
[1765765143953,3.18059205,3144.1,3142.3,6.36476466]
[1765765144195,3.18059205,3144.1,3142.3,3.66528233]
[1765765144196,6.3611841,3144.1,3142.3,3.66528233]
[1765765144379,0.1974,3143.7,3142.1,0.1964]
[1765765144571,0.533,3143.8,3142.1,0.1964]
[1765765144572,0.1974,3143.4,3142.1,0.1964]
[1765765144972,0.1974,3143.4,3142.3,0.58047529]
[1765765145172,0.533,3143.8,3142.3,0.97641089]
[1765765145368,0.533,3143.8,3142.4,1.0159]
[1765765145675,0.1974,3143.6,3142.3,0.58047529]
[1765765145883,0.533,3143.8,3142.4,1.0159]
[1765765146094,3.71391544,3143.8,3142.6,0.58047529]
[1765765146274,3.71391544,3143.8,3142.1,0.1964]
[1765765146275,0.1974,3143.5,3142.1,0.1964]
[1765765146471,0.1974,3143.4,3142.1,1.30987529]
[1765765146673,0.00966759,3143.7,3142.1,0.1964]
[1765765146967,0.1994,3143.3,3142.1,0.1964]
[1765765147562,0.002,3143.3,3142.1,0.1964]
[1765765148007,3.18147111,3143.2,3142.1,3.378979]
[1765765148197,3.83769167,3143.2,3142.1,0.1964]
[1765765148903,3.83769167,3143.2,3142.1,3.37897289]
[1765765149063,0.20706759,3143.1,3141.5,0.1964]
[1765765149263,0.1974,3143.1,3141.8,3.18286524]
[1765765149509,0.002,3143.3,3142.1,3.18257561]
[1765765149686,0.002,3143.3,3142.2,1.43073285]
[1765765149997,0.002,3143.3,3143.2,0.1964]
[1765765150200,0.002,3143.3,3142.3,0.4829]
[1765765150506,0.002,3143.3,3142.8,3.18180127]
[1765765150671,0.002,3143.3,3142.5,3.18216597]
[1765765150867,0.002,3143.3,3142.3,0.4829]
[1765765151166,0.002,3143.3,3142.2,0.58047529]
[1765765151370,0.002,3143.3,3142.2,0.532]
[1765765151573,0.002,3143.3,3142.2,3.71439089]
[1765765151809,0.002,3143.3,3142.2,0.532]
[1765765152222,3.18336989,3143.3,3142.3,3.18236265]
[1765765152393,0.31930375,3143.2,3142.3,3.18236265]
[1765765152894,0.002,3143.3,3142.3,3.18236265]
[1765765153897,0.002,3143.3,3142.1,0.4829]
[1765765154093,0.00966759,3143.1,3141.5,0.6793]
[1765765154414,6.36294222,3143.2,3141.6,1.0139]
[1765765154606,0.66590181,3143.1,3141.9,0.58047529]
[1765765154802,0.66590181,3143.1,3141.9,3.18277266]
[1765765155011,0.66590181,3143.1,3141.8,0.531]
[1765765155012,0.1974,3143.0,3141.5,0.1964]
[1765765155204,0.1974,3143.0,3141.6,3.18301916]
[1765765155411,0.1974,3143.0,3141.5,0.1964]
[1765765155412,0.0991,3142.9,3141.5,0.1964]
[1765765155699,0.00966759,3142.8,3141.2,0.4829]
[1765765155899,0.00966759,3142.6,3140.7,0.4829]
[1765765156115,9.54653937,3142.5,3140.5,0.531]
[1765765156325,30.0,3142.3,3139.5,0.1964]
[1765765156499,17.575383,3141.6,3139.6,0.4829]
[1765765156698,23.027643,3141.4,3139.5,0.1964]
[1765765156900,9.45472,3141.0,3139.1,0.1964]
[1765765157308,0.1974,3140.9,3139.1,3.38195049]
[1765765157540,0.531,3140.8,3139.2,0.58047529]
[1765765157902,0.531,3140.8,3139.1,0.77687529]
[1765765157903,0.1974,3140.7,3139.1,0.77687529]
[1765765158099,3.18410494,3140.6,3139.2,3.18552497]
[1765765158313,0.00966759,3140.5,3139.3,0.3381925]
[1765765158517,0.20706759,3140.5,3139.1,0.1964]
[1765765158715,0.20706759,3140.5,3139.0,3.18571097]
[1765765158904,0.20706759,3140.5,3138.9,0.1964]
[1765765159643,0.20706759,3140.5,3139.0,3.18572271]
[1765765159944,0.00966759,3140.0,3138.9,0.1964]
[1765765160148,0.531,3139.9,3139.1,3.18562013]
[1765765160321,3.71582742,3139.9,3138.9,0.1964]
[1765765160516,3.71582742,3139.9,3138.9,6.56804726]
[1765765160517,0.531,3139.9,3138.9,6.56804726]
[1765765160768,0.00966759,3141.3,3139.8,0.1964]
[1765765161052,0.00966759,3140.5,3139.2,0.531]
[1765765161248,0.00966759,3140.5,3139.0,1.06337529]
[1765765161249,0.54066759,3140.5,3139.1,1.0139]
[1765765161427,0.531,3141.0,3139.2,0.56285524]
[1765765161618,0.531,3141.0,3139.2,0.4829]
[1765765161826,0.531,3141.0,3139.0,0.58047529]
[1765765161827,0.00966759,3140.5,3139.0,0.58047529]
[1765765162024,0.531,3140.4,3139.1,1.24614226]
[1765765162230,3.18440913,3140.3,3139.1,6.3712529]
[1765765162643,3.18440913,3140.3,3139.1,3.18562645]
[1765765163242,0.531,3140.4,3139.1,6.3712529]
[1765765163438,0.1974,3141.2,3139.2,1.09523053]
[1765765163761,0.00966759,3140.9,3139.2,1.06337529]
[1765765164051,0.00966759,3140.9,3139.3,2.07592546]
[1765765164225,0.00966759,3140.9,3139.3,2.10777969]
[1765765164428,0.00966759,3140.7,3139.4,3.66822203]
[1765765164753,0.00966759,3140.7,3139.4,7.38454406]
[1765765164949,0.00966759,3140.7,3139.5,0.4829]
[1765765165150,0.00966759,3140.7,3139.6,0.73845441]
[1765765165351,0.00966759,3140.7,3139.5,0.4829]
[1765765165977,0.00966759,3140.7,3138.9,0.001]
[1765765165978,30.0,3140.2,3138.9,0.001]
[1765765166125,0.53,3140.1,3138.9,3.18679761]
[1765765166331,0.53,3140.1,3139.0,0.51475727]
[1765765166558,0.53,3140.1,3139.0,6.85435586]
[1765765166905,0.53,3140.1,3138.9,0.6382816]
[1765765166906,6.899252,3140.1,3138.9,0.6382816]
[1765765167054,0.00966759,3139.8,3138.9,0.001]
[1765765167678,0.89699279,3140.0,3139.0,0.001]
[1765765167679,0.69959279,3140.0,3139.0,0.001]
[1765765167886,0.00966759,3139.9,3139.0,0.001]
[1765765168088,0.53,3140.1,3139.1,1.1879]
[1765765168452,0.53,3140.1,3139.3,0.58047529]
[1765765168846,0.53,3140.1,3139.3,1.05487529]
[1765765169062,3.71462812,3140.1,3139.1,0.1835]
[1765765169266,0.3811304,3140.0,3139.0,0.58147529]
[1765765169476,0.53,3140.1,3139.1,6.87748553]
[1765765169686,0.53,3140.1,3139.1,6.84562927]
[1765765169863,0.53,3140.6,3139.2,1.05487529]
[1765765170054,0.53,3140.6,3139.3,0.53]
[1765765170252,0.53,3140.6,3139.4,0.03185322]
[1765765170569,0.0983,3141.6,3140.5,0.1835]
[1765765170765,0.0983,3141.6,3139.5,0.61232749]
[1765765170766,0.7274,3141.5,3139.9,0.53]
[1765765170960,1.03750555,3141.4,3139.6,0.4744]
[1765765171165,1.23490555,3141.4,3139.7,0.53]
[1765765171491,0.1974,3141.3,3139.6,0.4744]
[1765765171987,0.1974,3141.3,3139.7,0.03185017]
[1765765172198,0.1974,3141.3,3139.6,1.0044]
[1765765172369,0.00966759,3141.0,3139.7,6.37003534]
[1765765172571,0.53,3140.9,3139.7,7.37443534]
[1765765172877,0.53,3140.9,3139.8,0.472]
[1765765173066,3.71380082,3140.9,3139.7,0.53]
[1765765173279,0.37138008,3140.8,3139.7,0.58047529]
[1765765173588,0.53,3140.9,3139.8,0.472]
[1765765174090,0.53,3140.9,3139.8,1.002]
[1765765174266,0.53,3140.9,3139.6,3.18508142]
[1765765174267,0.00966759,3140.8,3139.6,3.18508142]
[1765765174466,0.00966759,3140.8,3139.3,0.472]
[1765765174467,0.00966759,3140.4,3139.3,0.472]
[1765765175081,0.53,3140.9,3139.6,6.37020376]
[1765765175282,0.00966759,3140.8,3139.6,3.82529034]
[1765765175487,0.00966759,3140.8,3139.6,3.18508464]
[1765765175793,0.20706759,3140.8,3139.6,3.18508464]
[1765765175984,0.00966759,3140.8,3139.6,6.37020376]
[1765765176182,0.00966759,3140.8,3139.7,0.472]
[1765765176383,3.18400356,3140.7,3139.4,0.58047529]
[1765765176587,0.00966759,3140.8,3139.5,1.22413223]
[1765765176782,6.37750349,3140.8,3139.5,0.69513223]
[1765765177095,3.18391795,3140.8,3139.6,0.472]
[1765765177398,0.53,3140.9,3139.6,0.472]
[1765765177399,0.53966759,3140.9,3139.6,0.472]
[1765765177592,0.53,3140.9,3139.6,0.50385119]
[1765765177895,0.53,3140.9,3139.6,0.472]
[1765765178062,3.72347947,3140.9,3139.6,0.472]
[1765765178865,6.90729135,3140.9,3139.6,3.88476069]
[1765765179070,0.00966759,3140.7,3139.6,3.65709994]
[1765765179271,0.00966759,3140.7,3139.6,6.84221906]
[1765765179470,0.00966759,3140.7,3139.6,3.65709994]
[1765765179697,0.00966759,3140.7,3139.6,6.84221906]
[1765765179880,0.00966759,3140.7,3139.6,7.57934097]
[1765765181582,0.53966759,3140.9,3139.6,7.10734097]
[1765765181782,0.53966759,3140.9,3139.7,0.472]
[1765765181991,0.53,3140.9,3139.7,0.472]
[1765765182698,0.53,3140.9,3139.8,0.528]
[1765765182899,0.53,3140.9,3139.7,0.472]
[1765765182900,3.71382638,3140.9,3139.7,0.472]
[1765765183101,3.71382638,3140.9,3139.8,0.528]
[1765765183303,3.71382638,3140.9,3139.8,3.18490928]
[1765765183304,0.3723494,3140.8,3139.8,3.18490928]
[1765765183603,0.38201699,3140.8,3139.8,3.18490928]
[1765765183800,0.38201699,3140.8,3139.7,0.472]
[1765765184100,0.38201699,3140.8,3139.9,3.1848148]
[1765765184304,0.38201699,3140.8,3139.8,3.18488859]
[1765765184500,0.53,3140.9,3139.9,0.03184814]
[1765765184672,0.53,3140.9,3139.9,0.472]
[1765765185175,3.18361295,3141.1,3140.0,3.18471337]
[1765765185176,0.527,3141.1,3140.0,3.18471337]
[1765765185505,0.0983,3141.6,3140.1,1.1393214]
[1765765185669,0.0983,3141.6,3140.4,1.62196964]
[1765765186072,0.0983,3141.6,3140.5,0.472]
[1765765186305,0.0983,3141.6,3140.6,0.58047529]
[1765765186505,0.0983,3141.6,3140.7,0.527]
[1765765186711,0.0983,3141.6,3140.7,0.999]
[1765765186895,0.529,3142.0,3140.7,0.79214449]
[1765765187088,0.529,3142.0,3140.8,0.999]
[1765765187284,0.529,3142.0,3141.0,0.58047529]
[1765765187480,0.002,3142.0,3141.1,0.6591]
[1765765187876,0.002,3142.0,3141.1,0.1871]
[1765765188073,0.002,3142.0,3141.2,0.472]
[1765765188298,0.002,3142.0,3141.2,0.999]
[1765765188572,0.002,3142.0,3141.2,0.472]
[1765765188772,0.002,3142.0,3141.9,0.4575]
[1765765189325,0.002,3142.0,3141.5,3.18319274]
[1765765189504,0.002,3142.0,3141.9,0.4575]
[1765765189878,0.002,3142.0,3141.9,0.9295]
[1765765191397,0.002,3142.0,3141.9,4.69276277]
[1765765192709,0.002,3142.0,3141.9,1.50997529]
[1765765193006,0.002,3142.0,3141.9,4.11228748]
[1765765193207,0.002,3142.0,3141.9,4.894515]
[1765765193392,0.002,3142.0,3141.9,5.47499029]
[1765765194414,0.002,3142.0,3141.9,6.00099029]
[1765765195388,0.002,3142.0,3141.9,5.47499029]
[1765765195702,0.002,3142.0,3141.9,6.00099029]
[1765765198305,0.002,3142.0,3141.9,4.69276277]
[1765765198711,0.002,3142.0,3141.4,0.4947]
[1765765198912,0.002,3142.0,3141.9,4.71416277]
[1765765199130,0.002,3142.0,3141.9,5.23916277]
[1765765200177,0.002,3142.0,3141.9,5.27099064]
[1765765200414,0.002,3142.0,3141.9,6.72412541]
[1765765200630,0.002,3142.0,3141.9,6.16729754]
[1765765200948,0.002,3142.0,3141.9,6.69229754]
[1765765201093,0.003,3142.8,3142.4,0.58047529]
[1765765201400,0.003,3142.8,3142.3,0.525]
[1765765201592,0.003,3142.8,3142.5,6.36435958]
[1765765202217,0.003,3142.8,3142.7,0.4562]
[1765765203030,0.003,3142.8,3142.6,0.58047529]
[1765765203196,0.003,3142.8,3142.5,6.88935958]
[1765765203400,0.003,3142.8,3142.5,3.18217979]
[1765765203714,0.003,3142.8,3142.1,0.6774]
[1765765203715,0.003,3142.8,3142.3,3.70737732]
[1765765203914,0.003,3142.8,3142.2,3.18245912]
[1765765204103,0.003,3142.8,3142.1,3.18251175]
[1765765204304,0.003,3142.8,3142.2,3.18247083]
[1765765204696,0.003,3142.8,3142.2,6.36495444]
[1765765204919,0.003,3142.8,3142.2,3.18247083]
[1765765205115,0.1994,3142.3,3141.4,0.6774]
[1765765205321,0.1994,3142.7,3141.6,3.18305662]
[1765765205519,0.1994,3142.7,3141.2,0.4947]
[1765765205731,0.1994,3142.7,3141.3,3.70836152]
[1765765205732,3.18207853,3142.6,3141.3,3.70836152]
[1765765205935,0.3005,3141.6,3140.7,0.81484449]
[1765765206139,0.1994,3142.0,3141.2,3.18349518]
[1765765206340,0.33814785,3142.5,3141.4,0.525]
[1765765206341,0.1011,3142.4,3141.4,0.525]
[1765765206548,0.1011,3142.4,3141.4,1.0197]
[1765765206904,0.1011,3142.4,3141.5,0.4957]
[1765765207120,0.1011,3142.7,3141.6,0.03183091]
[1765765207511,0.003,3142.8,3141.7,1.07517529]
[1765765207719,0.003,3142.8,3141.9,0.58047529]
[1765765208246,0.1994,3142.0,3141.7,3.18298666]
[1765765208414,0.003,3142.8,3141.7,10.07396686]
[1765765208621,0.005,3142.8,3141.8,1.07517529]
[1765765209033,0.005,3142.8,3141.9,0.4947]
[1765765209236,0.005,3142.8,3142.0,0.03182686]
[1765765209539,0.005,3142.8,3142.1,0.525]
[1765765209736,0.005,3142.8,3142.3,0.58047529]
[1765765209927,0.005,3142.8,3142.3,1.6457679]
[1765765210131,0.005,3142.8,3142.7,0.4562]
[1765765210627,0.005,3142.8,3142.7,0.9802]
[1765765210832,0.005,3142.8,3142.7,1.4749]
[1765765211815,0.005,3142.8,3142.7,4.65687728]
[1765765212017,0.005,3142.8,3142.7,6.02124982]
[1765765213322,0.005,3142.8,3142.7,6.05306959]
[1765765213723,0.005,3142.8,3142.7,5.52906959]
[1765765213942,0.005,3142.8,3142.7,4.21865257]
[1765765214144,0.005,3142.8,3142.7,4.74265257]
[1765765214369,0.2044,3142.8,3142.2,0.1827]
[1765765214683,0.2044,3142.8,3141.6,6.36618282]
[1765765214684,0.1994,3142.3,3141.6,6.36618282]
[1765765214824,0.1994,3141.7,3141.5,0.001]
[1765765215023,0.1994,3141.6,3141.5,0.001]
[1765765216358,0.3988,3141.6,3141.5,0.001]
[1765765217334,13.47785423,3141.6,3140.2,0.001]
[1765765217524,1.54718542,3141.5,3140.2,6.37000342]
[1765765217723,0.1994,3141.5,3140.3,0.58047529]
[1765765217928,0.2977,3140.4,3140.2,3.18549288]
[1765765218145,0.1497,3140.3,3140.2,0.001]
[1765765218547,0.0983,3140.4,3140.2,0.001]
[1765765218852,0.0983,3140.8,3140.2,0.001]
[1765765219040,0.0983,3141.0,3140.3,0.4562]
[1765765219240,0.0983,3141.0,3140.2,0.58147529]
[1765765219451,0.2977,3141.0,3140.2,0.001]
[1765765219962,0.1994,3140.3,3140.2,0.001]
[1765765220870,0.3988,3140.3,3140.2,0.001]
[1765765222261,3.58320913,3140.3,3140.2,0.001]
[1765765222464,4.93072942,3140.3,3140.2,0.001]
[1765765222663,28.26816542,3140.3,3140.2,0.001]
[1765765222865,26.93550242,3140.3,3140.2,0.001]
[1765765223177,19.82174842,3140.3,3140.2,0.001]
[1765765223368,25.90414139,3140.3,3140.2,0.001]
[1765765223662,18.68404239,3140.3,3140.2,0.001]
[1765765223864,7.37791542,3140.3,3140.2,0.001]
[1765765224239,4.93072942,3140.3,3140.2,0.001]
[1765765224976,0.3988,3140.3,3140.2,0.001]
[1765765225274,0.1994,3140.3,3140.2,0.001]
[1765765225683,0.3988,3140.3,3140.2,0.001]
[1765765226984,3.59287672,3140.3,3140.2,0.001]
[1765765227302,0.40846759,3140.3,3140.2,0.001]
[1765765227787,0.3988,3140.3,3140.2,0.001]
[1765765227992,0.1994,3140.3,3140.2,0.001]
[1765765228189,0.78956152,3140.3,3140.2,0.001]
[1765765228387,0.3988,3140.3,3140.2,0.001]
[1765765228604,3.58320913,3140.3,3140.2,0.001]
[1765765228907,27.83659613,3140.3,3140.2,0.001]
[1765765229674,3.58320913,3140.3,3140.2,0.001]
[1765765229885,4.3133286,3140.3,3140.2,0.001]
[1765765230483,0.1994,3140.3,3140.2,0.001]
[1765765230905,3.59287672,3140.3,3140.2,0.001]
[1765765232779,3.39347672,3140.3,3140.2,0.001]
[1765765233074,0.20906759,3140.3,3140.2,0.001]
[1765765233275,3.39347672,3140.3,3140.2,0.001]
[1765765233480,4.103648,3140.3,3140.2,0.001]
[1765765233675,0.90957128,3140.3,3140.2,0.001]
[1765765233896,0.1994,3140.3,3140.2,0.001]
[1765765234490,0.524,3140.4,3140.2,0.001]
[1765765236112,0.524,3140.4,3140.2,0.4659]
[1765765236296,0.523,3140.8,3140.2,0.001]
[1765765236497,0.00966759,3140.7,3140.2,0.001]
[1765765236898,0.523,3140.8,3140.2,0.4659]
[1765765237315,0.1994,3140.3,3140.2,0.001]
[1765765237514,0.7224,3140.3,3140.2,0.001]
[1765765239006,3.90680913,3140.3,3140.2,0.001]
[1765765239207,4.61688625,3140.3,3140.2,0.001]
[1765765239409,4.81628625,3140.3,3140.2,0.001]
[1765765240120,1.43247712,3140.3,3140.2,0.001]
[1765765240306,3.19359551,3140.8,3140.2,0.001]
[1765765240507,0.522,3140.6,3140.2,0.001]
[1765765240914,0.522,3140.6,3140.2,0.4659]
[1765765241098,0.522,3140.6,3140.2,0.001]
[1765765241827,3.70611001,3140.6,3140.2,0.001]
[1765765242046,4.39511955,3140.6,3140.2,0.001]
[1765765242210,7.77862956,3140.6,3140.2,0.001]
[1765765242533,0.1994,3140.3,3140.2,0.001]
[1765765243035,3.38380913,3140.3,3140.2,0.001]
[1765765243737,13.72285613,3140.3,3140.2,0.001]
[1765765243907,15.46125807,3140.3,3140.2,0.001]
[1765765244109,25.17192035,3140.3,3140.2,0.001]
[1765765244303,25.75239564,3140.3,3140.2,0.001]
[1765765244606,22.40139564,3140.3,3140.2,0.001]
[1765765244808,42.64047264,3140.3,3140.2,0.001]
[1765765245630,45.99147264,3140.3,3140.2,0.001]
[1765765246945,7.52148983,3140.2,3140.1,0.001]
[1765765247250,40.25152355,3140.2,3140.1,0.001]
[1765765247608,40.77252355,3140.2,3140.1,0.001]
[1765765247803,37.42152355,3140.2,3140.1,0.001]
[1765765249148,43.75152355,3140.2,3140.1,0.001]
[1765765251580,15.13842026,3140.2,3140.1,0.001]
[1765765251744,16.12439955,3140.2,3140.1,0.001]
[1765765251936,43.75152355,3140.2,3140.1,0.001]
[1765765253151,43.75152355,3140.2,3138.5,0.001]
[1765765253152,40.53076069,3139.6,3138.5,0.001]
[1765765253479,41.93967023,3139.6,3138.5,0.001]
[1765765253630,22.49635823,3139.6,3138.5,0.001]
[1765765253834,21.95778123,3139.6,3138.8,0.001]
[1765765254072,12.13907023,3139.6,3138.8,0.001]
[1765765254367,4.31052312,3139.6,3139.1,0.1994]
[1765765254775,3.90501912,3139.6,3139.1,0.1994]
[1765765254961,3.90501912,3139.6,3138.8,0.001]
[1765765255343,23.0845284,3139.6,3138.8,0.001]
[1765765255544,3.70611912,3139.6,3139.1,0.1994]
[1765765257574,0.521,3139.6,3139.5,0.9125]
[1765765259396,0.521,3139.6,3139.5,0.001]
[1765765259583,0.521,3139.6,3139.5,0.4557]
[1765765259899,0.521,3139.6,3139.5,0.9125]
[1765765260619,3.19319905,3141.2,3139.5,0.9125]
[1765765260765,0.002,3140.2,3139.6,0.4568]
[1765765260961,0.002,3140.2,3139.7,0.925504]
[1765765261162,0.002,3141.5,3140.1,0.6395]
[1765765261402,0.002,3141.5,3141.4,0.4547]
[1765765261713,0.002,3141.5,3141.4,3.63799407]
[1765765262008,0.005,3142.8,3141.5,0.58047529]
[1765765262170,6.36888868,3142.8,3141.8,0.4547]
[1765765262365,9.55083302,3142.8,3141.8,0.4547]
[1765765262703,6.36888868,3142.8,3141.8,0.4547]
[1765765262908,0.00966759,3142.6,3141.9,0.4568]
[1765765263207,0.00966759,3142.4,3141.9,0.4568]
[1765765263375,0.52966759,3142.4,3141.9,0.4568]
[1765765263573,0.52,3142.4,3142.3,0.6395]
[1765765263969,0.52,3142.4,3142.3,1.0963]
[1765765265514,0.005,3142.8,3142.4,3.18228105]
[1765765265718,0.005,3142.8,3142.7,0.4547]
[1765765266213,3.19055435,3143.8,3142.7,0.9115]
[1765765266412,0.83905544,3143.7,3143.2,0.4547]
[1765765266823,0.83905544,3143.7,3143.3,0.6416]
[1765765267184,0.83905544,3143.7,3143.4,0.4568]
[1765765268085,0.00966759,3144.8,3143.6,0.4547]
[1765765268399,0.519,3144.5,3144.2,0.6395]
[1765765268592,0.00966759,3145.0,3144.2,0.6395]
[1765765268926,0.003,3145.4,3144.2,1.0963]
[1765765268927,0.519,3144.9,3144.2,1.0963]
[1765765269490,0.003,3145.4,3144.2,4.85723454]
[1765765270013,0.002,3145.0,3144.2,4.85723454]
[1765765270908,0.002,3145.0,3144.2,5.37623454]
[1765765271220,0.002,3145.0,3144.2,6.23191648]
[1765765271406,0.002,3145.0,3144.2,6.63742048]
[1765765271614,0.002,3145.0,3144.3,0.98597929]
[1765765271785,0.003,3145.4,3144.9,0.4547]
[1765765271982,0.003,3145.4,3145.3,0.4547]
[1765765272198,3.17803422,3146.6,3145.3,0.4547]
[1765765272509,0.519,3147.1,3146.5,0.1848]
[1765765272708,0.00966759,3146.8,3145.4,0.519]
[1765765273035,0.00966759,3147.0,3145.7,0.4568]
[1765765273421,0.00966759,3146.4,3145.3,0.4568]
[1765765273621,0.00966759,3146.2,3145.3,0.4568]
[1765765273818,0.6472684,3146.2,3145.3,0.4568]
[1765765274736,0.6472684,3146.2,3145.0,0.1848]
[1765765274737,0.00966759,3146.0,3145.0,0.1848]
[1765765274936,0.00966759,3146.0,3145.1,0.4568]
[1765765275116,0.6472684,3146.2,3145.1,3.63633115]
[1765765275316,0.75229413,3146.1,3145.2,3.17944406]
[1765765275558,3.69733645,3146.3,3145.3,3.17927315]
[1765765275900,3.17773759,3146.9,3146.2,0.4547]
[1765765276005,3.17773759,3146.9,3145.4,0.4568]
[1765765276006,0.00966759,3146.4,3145.4,0.4568]
[1765765276210,0.00966759,3146.0,3145.1,0.4568]
[1765765276415,0.00966759,3146.0,3144.7,0.4568]
[1765765276416,0.00966759,3145.6,3144.7,0.4568]
[1765765276914,0.00966759,3144.9,3144.1,0.4568]
[1765765277432,0.00966759,3145.0,3144.1,0.4568]
[1765765277626,0.519,3145.1,3144.3,0.4568]
[1765765277826,3.69855776,3145.1,3144.3,0.4568]
[1765765278022,0.519,3145.1,3144.3,0.4568]
[1765765278226,3.69855718,3145.1,3144.3,0.4568]
[1765765279013,6.87811436,3145.1,3144.3,0.4568]
[1765765279214,7.5659258,3145.1,3144.3,0.4568]
[1765765279658,6.35768326,3145.8,3145.0,0.4547]
[1765765279838,0.00966759,3145.7,3145.3,0.1848]
[1765765280216,3.69648586,3146.2,3145.3,0.1848]
[1765765280217,0.518,3146.2,3145.6,0.4547]
[1765765280527,3.29444351,3146.3,3145.6,0.4547]
[1765765280733,0.00966759,3146.2,3145.6,0.4547]
[1765765281319,3.17834351,3146.3,3145.6,0.9115]
[1765765281731,3.17822916,3146.5,3145.7,0.4568]
[1765765281937,6.73779124,3146.5,3145.7,0.4568]
[1765765282321,0.00966759,3146.4,3145.7,0.4568]
[1765765282512,0.22906759,3145.8,3145.1,0.1848]
[1765765282713,0.00966759,3145.8,3145.1,0.1848]
[1765765283448,0.2194,3145.2,3144.3,0.4568]
[1765765283613,6.35889608,3145.2,3144.4,0.4568]
[1765765283812,6.35889608,3145.2,3144.2,0.6416]
[1765765283813,0.00966759,3145.0,3144.2,0.6416]
[1765765284143,0.68778961,3145.1,3144.2,0.6416]
[1765765284311,0.6974572,3145.1,3144.2,0.6416]
[1765765284513,0.00966759,3144.9,3144.2,0.6416]
[1765765284947,0.1033,3144.8,3144.2,0.6416]
[1765765285111,0.1033,3144.8,3144.2,0.1848]
[1765765285443,0.518,3144.7,3144.3,0.4568]
[1765765285749,0.002,3145.4,3145.0,0.4547]
[1765765285947,6.46553898,3146.7,3144.4,3.21205952]
[1765765285948,0.002,3146.8,3145.3,0.1848]
[1765765286161,6.35773931,3146.8,3145.3,0.1848]
[1765765286318,0.69938393,3146.7,3145.4,0.4568]
[1765765286518,0.70138393,3146.7,3145.4,0.4568]
[1765765287220,0.00966759,3146.4,3145.4,0.4568]
[1765765287354,0.518,3146.3,3145.3,0.1848]
[1765765287540,0.518,3146.3,3145.4,0.4755]
[1765765287736,0.002,3146.7,3145.6,0.58047529]
[1765765287939,0.002,3146.7,3145.7,1.01179097]
[1765765288140,0.002,3146.7,3145.7,1.48729097]
[1765765288450,0.002,3146.7,3145.8,0.4755]
[1765765289457,0.002,3146.7,3145.8,1.05597529]
[1765765289841,0.002,3146.7,3146.0,0.58047529]